bitfinex/quotes_BTCUSD_20251016
["timestamp","ask_amount","ask_price","bid_price","bid_amount"]
[1760574343859,0.00226841,110960.0,110950.0,0.27095149]
[1760574344085,0.00226841,110960.0,110950.0,0.38439149]
[1760574344509,0.00226841,110960.0,110950.0,0.72439149]
[1760574344721,0.00226841,110960.0,110950.0,1.40001397]
[1760574344926,0.00226841,110960.0,110950.0,0.72439149]
[1760574347207,0.00226841,110960.0,110950.0,0.61095149]
[1760574347405,0.00226841,110960.0,110950.0,0.72439149]
[1760574348312,0.00226841,110960.0,110950.0,1.40001397]
[1760574348954,0.00226841,110960.0,110950.0,0.72439149]
[1760574352969,0.00226841,110960.0,110950.0,1.40001397]
[1760574353411,0.00226841,110960.0,110950.0,0.72439149]
[1760574354181,0.00226841,110960.0,110950.0,0.61095149]
[1760574354392,0.00226841,110960.0,110950.0,0.72439149]
[1760574358355,0.18922587,110980.0,110960.0,0.1802319]
[1760574358587,0.21461491,110980.0,110970.0,0.11344]
[1760574358994,0.21579293,110980.0,110970.0,0.11344]
[1760574360404,0.18022889,110970.0,110960.0,0.18023662]
[1760574360618,0.02525377,110970.0,110960.0,0.38336674]
[1760574360843,0.02528397,110970.0,110960.0,0.38336674]
[1760574361668,0.20551286,110970.0,110960.0,0.38336674]
[1760574361883,0.02528397,110970.0,110960.0,0.38336674]
[1760574363060,0.20551286,110970.0,110960.0,0.38337525]
[1760574363299,0.20551286,110970.0,110960.0,0.26993525]
[1760574363505,0.20551286,110970.0,110960.0,0.38337525]
[1760574363867,0.02528397,110970.0,110960.0,0.38337525]
[1760574365153,0.0168561,110970.0,110960.0,0.38337525]
[1760574365377,0.0168561,110970.0,110960.0,0.38437525]
[1760574366138,0.01744516,110970.0,110960.0,0.38437525]
[1760574366363,0.01744516,110970.0,110960.0,0.27093525]
[1760574366564,0.01744516,110970.0,110960.0,0.38437525]
[1760574370634,0.01744516,110970.0,110960.0,1.39999773]
[1760574371034,0.00058906,110970.0,110960.0,1.39999773]
[1760574371247,0.00058906,110970.0,110960.0,0.72437525]
[1760574371445,0.01747291,110970.0,110960.0,0.72437525]
[1760574372068,0.00058906,110970.0,110960.0,0.72437525]
[1760574372277,0.00058906,110970.0,110960.0,1.43618001]
[1760574374038,0.00058906,110970.0,110960.0,0.76055753]
[1760574374209,0.00058906,110970.0,110960.0,1.43618001]
[1760574374977,1e-08,110980.0,110970.0,0.21641117]
[1760574375180,1e-08,110980.0,110970.0,0.98172377]
[1760574376041,1e-08,110980.0,110970.0,0.94554149]
[1760574377218,1e-08,110980.0,110970.0,0.26991901]
[1760574378475,1e-08,110980.0,110970.0,0.27091901]
[1760574382328,1e-08,110980.0,110970.0,0.32499901]
[1760574385576,0.00058899,110980.0,110970.0,0.32499901]
[1760574385772,0.00058899,110980.0,110970.0,0.27091901]
[1760574385980,0.18080164,110980.0,110970.0,0.38431901]
[1760574386404,0.61962217,110980.0,110970.0,0.1144]
[1760574386621,0.61962217,110980.0,110970.0,0.30990304]
[1760574386820,0.18080164,110980.0,110970.0,0.29462889]
[1760574388082,0.18080164,110980.0,110970.0,0.29362889]
[1760574388451,0.61962217,110980.0,110970.0,0.29362889]
[1760574388636,0.00058899,110980.0,110970.0,0.29362889]
[1760574388828,0.00058899,110980.0,110970.0,0.38331901]
[1760574390110,0.18080164,110980.0,110970.0,0.38331901]
[1760574390316,0.00058899,110980.0,110970.0,0.38431901]
[1760574390740,0.18080164,110980.0,110970.0,0.38431901]
[1760574390865,0.00058899,110980.0,110970.0,0.38431901]
[1760574395414,0.38684836,110980.0,110970.0,0.38431901]
[1760574396229,0.00058899,110980.0,110970.0,0.77057838]
[1760574396431,0.00058899,110980.0,110970.0,1.11057838]
[1760574397232,0.00058899,110980.0,110970.0,0.72431901]
[1760574397463,0.00058899,110980.0,110970.0,1.11057838]
[1760574397933,8.899e-05,110980.0,110970.0,1.11057838]
[1760574401513,8.899e-05,110980.0,110970.0,1.49683775]
[1760574401839,8.899e-05,110980.0,110970.0,0.72431901]
[1760574402049,8.899e-05,110980.0,110970.0,0.20409012]
[1760574402254,8.899e-05,110980.0,110970.0,0.38431901]
[1760574402449,8.899e-05,110980.0,110970.0,0.27091901]
[1760574402688,8.899e-05,110980.0,110970.0,0.38431901]
[1760574403122,0.18030164,110980.0,110970.0,0.38431901]
[1760574403335,8.899e-05,110980.0,110970.0,0.38431901]
[1760574403776,0.58908759,110980.0,110970.0,0.001]
[1760574403934,0.95282038,110980.0,110970.0,0.12967415]
[1760574404350,0.56656101,110980.0,110970.0,0.12967415]
[1760574404545,0.95282038,110980.0,110970.0,0.1144]
[1760574404839,0.95282038,110980.0,110970.0,0.1134]
[1760574404984,0.56656101,110980.0,110970.0,0.1134]
[1760574405353,0.18030164,110980.0,110970.0,0.30890304]
[1760574405558,0.18030164,110980.0,110970.0,0.1134]
[1760574405786,0.18030164,110980.0,110970.0,0.30890304]
[1760574405992,0.18030164,110980.0,110970.0,0.29362889]
[1760574406865,0.18030164,110980.0,110970.0,0.1134]
[1760574407035,0.18030164,110980.0,110970.0,0.12867415]
[1760574408277,0.18030164,110980.0,110970.0,0.30890304]
[1760574408476,0.17980164,110980.0,110970.0,0.29362889]
[1760574409362,0.17980164,110980.0,110970.0,0.1134]
[1760574409567,0.18025628,110960.0,110940.0,0.1892915]
[1760574409779,0.18025628,110960.0,110940.0,0.34171958]
[1760574409780,0.20279404,110950.0,110940.0,0.34171958]
[1760574410034,0.61924162,110960.0,110950.0,0.18026137]
[1760574410248,0.18025628,110960.0,110950.0,0.18026137]
[1760574410451,0.18027305,110960.0,110950.0,0.18026137]
[1760574410691,0.18027305,110960.0,110940.0,0.38336748]
[1760574410905,0.02164949,110950.0,110940.0,0.38336748]
[1760574411545,0.18027305,110960.0,110940.0,0.38336748]
[1760574411546,0.18027305,110960.0,110950.0,0.18026137]
[1760574412764,0.18027305,110960.0,110940.0,0.38336748]
[1760574413297,0.18026137,110950.0,110940.0,0.20309012]
[1760574413499,0.18026137,110950.0,110940.0,0.38336774]
[1760574414702,0.61924671,110950.0,110940.0,0.1134]
[1760574415108,0.18027305,110960.0,110940.0,0.30896395]
[1760574415310,0.02253267,110950.0,110940.0,0.29367762]
[1760574415718,0.20279404,110950.0,110940.0,0.29367762]
[1760574415928,0.18026137,110950.0,110940.0,0.29367762]
[1760574416391,0.18027305,110960.0,110940.0,0.29367762]
[1760574416634,0.02253267,110950.0,110940.0,0.29367762]
[1760574417240,0.20279404,110950.0,110940.0,0.29367762]
[1760574417454,0.5800209,110970.0,110950.0,0.18026137]
[1760574417657,0.14103556,110970.0,110960.0,0.11344]
[1760574417871,0.60254951,110970.0,110960.0,0.11344]
[1760574418019,0.5800209,110970.0,110960.0,0.11344]
[1760574418839,0.5810209,110970.0,110960.0,0.11344]
[1760574419068,0.5820209,110970.0,110960.0,0.11344]
[1760574420181,0.5820209,110970.0,110960.0,0.29368513]
[1760574420182,0.002,110970.0,110960.0,0.29368513]
[1760574420828,0.18222889,110970.0,110960.0,0.29368513]
[1760574421073,0.18122889,110970.0,110960.0,0.29368513]
[1760574421518,0.18022889,110970.0,110960.0,0.29368513]
[1760574421725,0.61920557,110980.0,110960.0,0.29368513]
[1760574421954,0.02252861,110970.0,110960.0,0.29368513]
[1760574422166,0.2027575,110970.0,110960.0,0.29368513]
[1760574422379,0.61921423,110970.0,110960.0,0.11344]
[1760574422609,0.18024513,110960.0,110950.0,0.18026137]
[1760574422816,0.61923047,110960.0,110950.0,0.11344]
[1760574423234,0.18027475,110950.0,110930.0,0.18930769]
[1760574423441,0.61926009,110950.0,110940.0,0.29371762]
[1760574423806,0.18027475,110950.0,110940.0,0.29371762]
[1760574424212,0.18026137,110950.0,110940.0,0.29371762]
[1760574425678,0.18026137,110950.0,110940.0,0.11344]
[1760574425878,0.18026137,110950.0,110940.0,0.29371762]
[1760574427276,0.18925738,110960.0,110940.0,0.29371762]
[1760574427680,0.20164405,110950.0,110940.0,0.29371762]
[1760574427882,0.18026137,110950.0,110940.0,0.29371762]
[1760574428480,0.18026137,110950.0,110940.0,0.11344]
[1760574428682,0.18026137,110950.0,110940.0,0.29371762]
[1760574430064,0.18026137,110950.0,110940.0,0.11344]
[1760574430266,0.61924671,110950.0,110930.0,0.27899781]
[1760574430470,0.61924671,110950.0,110940.0,0.11344]
[1760574430881,0.18027762,110940.0,110910.0,0.5293427]
[1760574431066,0.20283977,110930.0,110920.0,0.30093543]
[1760574431262,0.61926296,110940.0,110920.0,0.29375013]
[1760574431487,0.02253673,110930.0,110920.0,0.29375013]
[1760574432124,0.2028306,110930.0,110920.0,0.30544022]
[1760574432325,0.18029387,110930.0,110920.0,0.30544022]
[1760574433947,0.18029387,110930.0,110920.0,0.29425096]
[1760574434327,0.18029387,110930.0,110920.0,0.30559406]
[1760574434607,0.18029387,110930.0,110920.0,0.29425096]
[1760574435018,0.61961436,110940.0,110920.0,0.30540261]
[1760574435265,0.02253673,110930.0,110920.0,0.30540261]
[1760574435472,0.65569095,110960.0,110930.0,0.18029387]
[1760574435696,0.18026172,110950.0,110940.0,0.29371499]
[1760574435887,0.61959846,110950.0,110940.0,0.11344]
[1760574437783,0.18026172,110950.0,110940.0,0.11344]
[1760574438415,0.61959846,110950.0,110940.0,0.11344]
[1760574439271,0.18028866,110940.0,110920.0,0.20097811]
[1760574439478,0.6196254,110940.0,110930.0,0.11344]
[1760574439685,0.6196254,110940.0,110930.0,0.29373387]
[1760574439891,0.18028866,110940.0,110930.0,0.29373387]
[1760574441163,0.18028866,110940.0,110930.0,0.11344]
[1760574441439,0.18029387,110930.0,110920.0,0.00050083]
[1760574441736,0.61963061,110930.0,110920.0,0.00050083]
[1760574441948,0.61963061,110930.0,110920.0,0.11394083]
[1760574442648,0.18029387,110930.0,110920.0,0.11394083]
[1760574443344,0.18029387,110930.0,110920.0,0.29425096]
[1760574443561,0.18028866,110940.0,110920.0,0.29425096]
[1760574443775,0.6557092,110950.0,110930.0,0.18029387]
[1760574443988,0.18927478,110950.0,110940.0,0.11344]
[1760574444472,0.62861152,110950.0,110940.0,0.11344]
[1760574444918,0.18927478,110950.0,110940.0,0.11344]
[1760574445163,0.18927478,110950.0,110940.0,0.29371762]
[1760574445366,0.001,110950.0,110940.0,0.29371762]
[1760574445774,0.18026137,110950.0,110940.0,0.29371762]
[1760574446905,0.18925738,110960.0,110940.0,0.29371762]
[1760574447103,0.18026137,110950.0,110940.0,0.29371762]
[1760574448110,0.19025738,110960.0,110950.0,0.18026137]
[1760574448311,0.18024513,110960.0,110950.0,0.18026137]
[1760574448957,0.18024513,110960.0,110940.0,0.3027315]
[1760574449164,0.19219724,110950.0,110940.0,0.38340774]
[1760574449369,0.20279404,110950.0,110940.0,0.38340774]
[1760574449638,0.18026137,110950.0,110940.0,0.38340774]
[1760574450034,0.18026137,110950.0,110940.0,0.11344]
[1760574450919,0.18026137,110950.0,110940.0,0.29371762]
[1760574453359,0.56677785,110950.0,110940.0,0.29371762]
[1760574454184,0.56677785,110950.0,110940.0,0.11344]
[1760574454894,0.56677785,110950.0,110940.0,0.29371762]
[1760574455972,0.18026137,110950.0,110940.0,0.29371762]
[1760574456309,0.18026137,110950.0,110940.0,0.18027762]
[1760574456518,0.56676161,110960.0,110950.0,0.18026137]
[1760574456726,0.18024513,110960.0,110950.0,0.29370137]
[1760574457183,0.60283834,110980.0,110960.0,0.18024513]
[1760574457395,0.02252861,110970.0,110960.0,0.18024513]
[1760574457618,0.2027575,110970.0,110960.0,0.29368513]
[1760574457845,0.2027575,110970.0,110960.0,0.18024513]
[1760574458161,0.18024513,110960.0,110950.0,0.18146137]
[1760574458407,0.18022889,110970.0,110950.0,0.29505156]
[1760574458606,0.20277577,110960.0,110950.0,0.18161156]
[1760574458828,0.18024513,110960.0,110950.0,0.29505156]
[1760574459725,0.18022889,110970.0,110960.0,0.18024513]
[1760574460398,0.18022889,110970.0,110960.0,0.29368513]
[1760574460613,0.18022889,110970.0,110960.0,0.18024513]
[1760574460851,0.18022889,110970.0,110960.0,0.29368513]
[1760574462108,0.18022889,110970.0,110960.0,0.11344]
[1760574462509,0.18022889,110970.0,110960.0,0.29368513]
[1760574462752,0.18022889,110970.0,110960.0,0.11344]
[1760574462952,0.18022889,110970.0,110960.0,0.29368513]
[1760574463172,0.18022889,110970.0,110960.0,0.11344]
[1760574463374,0.56674537,110970.0,110960.0,0.11344]
[1760574463490,0.56674537,110970.0,110950.0,0.19062462]
[1760574463881,0.56674537,110970.0,110950.0,0.28031474]
[1760574464072,0.56674537,110970.0,110960.0,0.11344]
[1760574464519,0.57574734,110980.0,110970.0,0.18022889]
[1760574464704,0.18021265,110980.0,110970.0,0.18022889]
[1760574465444,0.18021265,110980.0,110970.0,0.19129702]
[1760574465866,0.18021265,110980.0,110970.0,0.01106813]
[1760574466224,0.18022889,110970.0,110960.0,0.2789475]
[1760574466432,0.18022889,110970.0,110960.0,0.40325479]
[1760574467766,0.56674537,110970.0,110960.0,0.28981479]
[1760574467973,0.56674537,110970.0,110960.0,0.40325479]
[1760574468173,0.18022889,110970.0,110960.0,0.40325479]
[1760574469168,0.18022889,110970.0,110960.0,0.40445479]
[1760574469530,0.18022889,110970.0,110960.0,0.29101479]
[1760574469741,0.18022889,110970.0,110960.0,0.40445479]
[1760574470730,0.18022889,110970.0,110960.0,0.29101479]
[1760574470936,0.18022889,110970.0,110960.0,0.40445479]
[1760574471336,0.18022889,110970.0,110960.0,0.29101479]
[1760574471536,0.18022889,110970.0,110960.0,0.40445479]
[1760574471925,0.18022889,110970.0,110960.0,0.29101479]
[1760574472346,0.18022889,110970.0,110960.0,0.40445479]
[1760574472753,0.18022889,110970.0,110960.0,0.29101479]
[1760574472959,0.18022889,110970.0,110960.0,0.40445479]
[1760574473384,0.18022889,110970.0,110960.0,0.29101479]
[1760574473603,0.56672913,110980.0,110960.0,0.40445479]
[1760574474021,0.56672913,110980.0,110970.0,0.0012]
[1760574474224,0.18021265,110980.0,110970.0,0.18142889]
[1760574474399,0.18021265,110980.0,110970.0,0.0012]
[1760574475214,0.18021265,110980.0,110970.0,0.18142889]
[1760574475409,0.66611519,110990.0,110970.0,0.18142889]
[1760574475616,0.0002,110990.0,110980.0,0.3034612]
[1760574475934,0.0002,110990.0,110980.0,0.29365265]
[1760574476259,0.18039641,110990.0,110980.0,0.29365265]
[1760574476462,0.18039641,110990.0,110980.0,0.18021265]
[1760574476630,0.18039641,110990.0,110980.0,0.29365265]
[1760574476838,0.0002,110990.0,110980.0,0.29365265]
[1760574477818,0.0012,110990.0,110980.0,0.29365265]
[1760574478238,0.0012,110990.0,110970.0,0.27111901]
[1760574478239,0.0002,110990.0,110970.0,0.27111901]
[1760574478445,0.0002,110990.0,110980.0,0.12315336]
[1760574478847,0.0002,110990.0,110980.0,0.30336601]
[1760574479131,0.0002,110990.0,110980.0,0.29361265]
[1760574479446,0.21656376,111010.0,110990.0,0.18019641]
[1760574479682,0.18018018,111000.0,110990.0,0.18019641]
[1760574479890,0.57599841,111010.0,110990.0,0.29359641]
[1760574480098,0.18036394,111010.0,110990.0,0.29359641]
[1760574480723,0.18036394,111010.0,111000.0,0.1134]
[1760574481124,0.56688042,111010.0,111000.0,0.1134]
[1760574481656,0.56864681,111010.0,111000.0,0.29358018]
[1760574481858,0.56964681,111010.0,111000.0,0.1134]
[1760574482396,0.57064681,111010.0,111000.0,0.1134]
[1760574482601,0.56964681,111010.0,111000.0,0.1134]
[1760574482986,0.57064681,111010.0,111000.0,0.1134]
[1760574483389,0.57064681,111010.0,110990.0,0.18019641]
[1760574483589,0.58921919,111000.0,110990.0,0.18019641]
[1760574483752,0.56669667,111000.0,110990.0,0.1134]
[1760574483958,0.56669667,111000.0,110990.0,0.01526603]
[1760574484297,0.56669667,111000.0,110990.0,0.30886244]
[1760574484439,0.56669667,111000.0,110990.0,0.29359641]
[1760574485220,0.56669667,111000.0,110990.0,0.1134]
[1760574485440,0.56669667,111000.0,110990.0,0.19546244]
[1760574485714,0.50057552,111000.0,110990.0,0.29359641]
[1760574485938,0.52765527,111000.0,110990.0,0.29359641]
[1760574486933,0.52765527,111000.0,110990.0,0.18019641]
[1760574487163,0.52765527,111000.0,110990.0,0.29359641]
[1760574487759,0.20725994,111000.0,110990.0,0.29359641]
[1760574487996,0.59377642,111000.0,110990.0,0.29359641]
[1760574488483,0.02707975,111000.0,110990.0,0.29359641]
[1760574488702,0.04960227,111000.0,110990.0,0.29359641]
[1760574488841,0.05077997,111000.0,110990.0,0.29359641]
[1760574489634,0.0011777,111000.0,110990.0,0.29359641]
[1760574489832,0.0011777,111000.0,110990.0,0.38328653]
[1760574494753,0.04979924,111010.0,111000.0,0.18020248]
[1760574494920,0.22996318,111010.0,111000.0,0.18020248]
[1760574495133,0.20744269,111010.0,111000.0,0.18020248]
[1760574496146,0.02727875,111010.0,111000.0,0.18020248]
[1760574496310,0.04979924,111010.0,111000.0,0.18020248]
[1760574496905,0.02727875,111010.0,111000.0,0.18020248]
[1760574499114,0.02727875,111010.0,111000.0,0.29360248]
[1760574499521,0.02727875,111010.0,111000.0,0.30467827]
[1760574499767,0.20744269,111010.0,111000.0,0.30467827]
[1760574499971,0.59395917,111010.0,111000.0,0.29360248]
[1760574500168,0.59395917,111010.0,111000.0,0.18020248]
[1760574500377,0.59454791,111010.0,111000.0,0.29356248]
[1760574501421,0.59454791,111010.0,111000.0,0.18020248]
[1760574501633,0.59454791,111010.0,111000.0,0.29356248]
[1760574502928,0.59454791,111010.0,111000.0,0.1133823]
[1760574503353,0.59454791,111010.0,111000.0,2.23e-05]
[1760574503580,0.59454791,111010.0,111000.0,0.1133823]
[1760574504007,0.20803143,111010.0,111000.0,0.1133823]
[1760574504228,0.59454791,111010.0,111000.0,0.1133823]
[1760574504879,0.59454791,111010.0,111000.0,0.29356248]
[1760574506250,0.59454791,111010.0,111000.0,0.1133823]
[1760574506867,0.59454791,111010.0,111000.0,0.29356248]
[1760574507474,0.41398099,111010.0,111000.0,0.29356248]
[1760574507700,0.59414493,111010.0,111000.0,0.29356248]
[1760574508865,0.59414493,111010.0,111000.0,0.1133823]
[1760574509075,0.59414493,111010.0,111000.0,0.29356248]
[1760574509481,0.59414493,111010.0,111000.0,0.18020248]
[1760574509692,0.59414493,111010.0,111000.0,0.29356248]
[1760574510152,0.20803143,111010.0,111000.0,0.29356248]
[1760574510368,0.59414493,111010.0,111000.0,0.18020248]
[1760574510588,0.59414493,111010.0,111000.0,0.29356248]
[1760574512568,0.20803143,111010.0,111000.0,0.29356248]
[1760574512775,0.59414493,111010.0,111000.0,0.29356248]
[1760574514854,0.59414493,111010.0,111000.0,0.18020248]
[1760574515061,0.59414493,111010.0,111000.0,0.29356248]
[1760574515273,0.59414493,111010.0,111000.0,0.1133823]
[1760574515887,0.59414493,111010.0,111000.0,0.29356248]
[1760574516104,0.59414493,111010.0,111000.0,0.1133823]
[1760574516520,0.98025843,111010.0,111000.0,2.23e-05]
[1760574516728,0.98025843,111010.0,111000.0,0.1133823]
[1760574518207,0.98021843,111010.0,111000.0,0.11336]
[1760574518414,0.18019406,111000.0,110980.0,0.18921851]
[1760574518645,0.58883905,110990.0,110970.0,0.32592215]
[1760574518864,0.180201,110990.0,110980.0,0.30394102]
[1760574519074,0.20272555,110990.0,110980.0,0.29357265]
[1760574519276,0.22980787,110990.0,110980.0,0.29357265]
[1760574519551,0.20728332,110990.0,110980.0,0.29357265]
[1760574520028,0.59339682,110990.0,110980.0,0.29357265]
[1760574520249,0.59339682,110990.0,110980.0,0.18021265]
[1760574520477,0.59339682,110990.0,110980.0,0.29357265]
[1760574521195,0.18021265,110980.0,110960.0,0.18925738]
[1760574521463,0.588871,110970.0,110960.0,0.00015019]
[1760574521674,0.56634239,110970.0,110960.0,0.00015019]
[1760574521889,0.95245589,110970.0,110960.0,0.00015019]
[1760574522102,0.59343146,110970.0,110960.0,0.00015019]
[1760574522318,0.59343146,110970.0,110960.0,0.11351019]
[1760574522561,0.97954496,110970.0,110960.0,0.11351019]
[1760574522996,0.59343146,110970.0,110960.0,0.00015019]
[1760574523204,0.59343146,110970.0,110960.0,0.11351019]
[1760574524511,0.97954496,110970.0,110960.0,0.11351019]
[1760574526334,0.97954496,110970.0,110960.0,0.00015019]
[1760574526543,0.59343146,110970.0,110960.0,0.00015019]
[1760574526763,0.59343146,110970.0,110960.0,0.11351019]
[1760574527460,0.59343146,110970.0,110960.0,0.00015019]
[1760574527637,0.59343146,110970.0,110960.0,0.11355019]
[1760574529074,1.06923508,110970.0,110960.0,0.00015019]
[1760574529492,1.06923508,110970.0,110960.0,0.11355019]
[1760574530117,1.41023508,110970.0,110960.0,0.11355019]
[1760574530276,1.41123508,110970.0,110960.0,0.11355019]
[1760574532243,0.63900808,110970.0,110960.0,0.11355019]
[1760574532438,0.93543146,110970.0,110960.0,0.11355019]
[1760574532646,1.32154496,110970.0,110960.0,0.11355019]
[1760574532876,1.32154496,110970.0,110960.0,0.00015019]
[1760574533134,1.32154496,110970.0,110960.0,0.11355019]
[1760574536680,0.95445589,110970.0,110960.0,0.11355019]
[1760574536834,0.98154716,110970.0,110960.0,0.11355019]
[1760574537035,1.07123728,110970.0,110960.0,0.00015019]
[1760574537239,1.07123728,110970.0,110960.0,0.11355019]
[1760574538484,1.10741956,110970.0,110960.0,0.00015019]
[1760574538698,1.44741956,110970.0,110960.0,0.11355019]
[1760574538944,1.83353306,110970.0,110960.0,0.00015019]
[1760574539150,1.83353306,110970.0,110960.0,0.11355019]
[1760574539354,1.44741956,110970.0,110960.0,0.11355019]
[1760574539680,1.44741956,110970.0,110960.0,0.00015019]
[1760574539905,1.44741956,110970.0,110960.0,0.11355019]
[1760574540308,1.44741956,110970.0,110960.0,0.00015019]
[1760574540513,1.44741956,110970.0,110960.0,0.11355019]
[1760574541747,0.67519256,110970.0,110960.0,0.11355019]
[1760574541988,1.44741956,110970.0,110960.0,0.11355019]
[1760574542249,1.44741956,110970.0,110960.0,0.00015019]
[1760574542677,1.44741956,110970.0,110960.0,0.11355019]
[1760574544802,1.41521972,110970.0,110960.0,0.11355019]
[1760574544994,1.44231466,110970.0,110960.0,0.11355019]
[1760574546347,1.84775649,110970.0,110960.0,0.00015019]
[1760574546464,1.46164299,110970.0,110960.0,0.00015019]
[1760574546663,1.42546071,110970.0,110960.0,0.11355019]
[1760574546871,1.02001888,110970.0,110960.0,0.11355019]
[1760574547105,1.40613238,110970.0,110960.0,0.11355019]
[1760574547759,0.93343733,110970.0,110960.0,0.11355019]
[1760574547981,1.31955083,110970.0,110960.0,0.11355019]
[1760574548191,0.54732383,110970.0,110960.0,0.11355019]
[1760574548458,0.93343733,110970.0,110960.0,0.11355019]
[1760574549098,1.31955083,110970.0,110960.0,0.11355019]
[1760574549301,1.33891452,110970.0,110960.0,0.00015019]
[1760574549752,1.86771352,110970.0,110960.0,0.00015019]
[1760574550184,1.89199098,110970.0,110960.0,0.00015019]
[1760574551245,1.89399098,110970.0,110960.0,0.00015019]
[1760574551876,1.89299098,110970.0,110960.0,0.00015019]
[1760574552175,1.89399098,110970.0,110960.0,0.00015019]
[1760574552594,0.73565048,110970.0,110960.0,0.00015019]
[1760574552820,1.93240397,110970.0,110960.0,0.00015019]
[1760574553069,1.98879948,110970.0,110960.0,0.00015019]
[1760574553491,1.98879948,110970.0,110960.0,1e-08]
[1760574553720,0.18927443,110950.0,110920.0,0.1258721]
[1760574553938,0.63591284,110950.0,110940.0,0.05796]
[1760574554154,0.18029387,110930.0,110920.0,0.1258721]
[1760574554364,0.18029387,110930.0,110920.0,0.2392721]
[1760574554576,0.18029387,110930.0,110920.0,0.16752]
[1760574554799,0.18029387,110930.0,110920.0,0.05412]
[1760574555047,0.56640737,110930.0,110920.0,0.16752]
[1760574555705,0.56640737,110930.0,110920.0,0.05412]
[1760574555928,0.56640737,110930.0,110920.0,0.16752]
[1760574556862,0.18029387,110930.0,110920.0,0.16752]
[1760574557082,0.18029387,110930.0,110920.0,0.34783013]
[1760574557298,0.56640573,110940.0,110920.0,0.34783013]
[1760574557517,0.56640573,110940.0,110920.0,0.23443013]
[1760574557735,0.56640573,110940.0,110930.0,0.1134]
[1760574558174,0.95251923,110940.0,110930.0,0.1134]
[1760574558395,0.18029387,110930.0,110920.0,0.24387984]
[1760574558642,0.18029387,110930.0,110920.0,0.34782848]
[1760574558643,0.56640737,110930.0,110920.0,0.34782848]
[1760574558877,0.3861135,110930.0,110920.0,0.34782848]
[1760574559106,0.56640737,110930.0,110920.0,0.29370848]
[1760574559351,0.56640737,110930.0,110920.0,0.18030848]
[1760574559539,0.56640737,110930.0,110920.0,0.29370848]
[1760574560238,0.56640737,110930.0,110920.0,0.18030848]
[1760574560461,0.56640737,110930.0,110920.0,0.29370848]
[1760574560898,0.3861135,110930.0,110920.0,0.29370848]
[1760574561135,0.56640573,110940.0,110930.0,0.18029387]
[1760574561590,0.56640573,110940.0,110920.0,0.29370848]
[1760574561817,0.56640573,110940.0,110930.0,0.18029387]
[1760574562768,0.56640573,110940.0,110920.0,0.29370848]
[1760574562983,0.18029387,110930.0,110920.0,0.29370848]
[1760574563201,0.2028306,110930.0,110920.0,0.29370848]
[1760574563425,0.18029387,110930.0,110920.0,0.29370848]
[1760574564095,0.56640737,110930.0,110920.0,0.18030848]
[1760574564331,0.56640737,110930.0,110920.0,0.29370848]
[1760574565852,0.56640737,110930.0,110920.0,0.1134]
[1760574568322,0.566963,110930.0,110920.0,0.29371013]
[1760574568539,0.18029387,110930.0,110920.0,0.29371013]
[1760574571264,0.18029387,110930.0,110920.0,0.18031013]
[1760574571481,0.18029387,110930.0,110920.0,0.29371013]
[1760574572784,0.18029387,110930.0,110920.0,0.18031013]
[1760574573011,0.18029387,110930.0,110920.0,0.29371013]
[1760574573282,0.56696136,110940.0,110930.0,0.18029387]
[1760574573487,0.56696136,110940.0,110930.0,0.1134]
[1760574573733,0.56696136,110940.0,110920.0,0.18031013]
[1760574574240,0.56696136,110940.0,110930.0,0.1134]
[1760574574725,0.56696136,110940.0,110930.0,0.29369387]
[1760574574969,0.56696136,110940.0,110930.0,0.18029387]
[1760574575409,0.18029223,110940.0,110930.0,0.29369387]
[1760574575418,0.60317717,110950.0,110930.0,0.29369387]
[1760574575642,0.18940962,110950.0,110940.0,0.18027762]
[1760574576323,0.18027762,110940.0,110930.0,0.29369387]
[1760574576556,0.18027762,110940.0,110930.0,0.38338399]
[1760574576792,0.56694675,110940.0,110930.0,0.20309012]
[1760574577023,0.56694675,110940.0,110930.0,0.38338399]
[1760574577258,0.56694675,110940.0,110930.0,0.26998399]
[1760574577476,0.56694675,110940.0,110930.0,0.38338399]
[1760574577938,0.18027762,110940.0,110930.0,0.1134]
[1760574578176,0.18027762,110940.0,110920.0,0.18031013]
[1760574578177,0.18030792,110930.0,110920.0,0.18031013]
[1760574578407,0.18030792,110930.0,110920.0,0.29371013]
[1760574578628,0.18029387,110930.0,110920.0,0.29371013]
[1760574579122,0.18029387,110930.0,110920.0,0.18031013]
[1760574579353,0.18029387,110930.0,110920.0,0.29371013]
[1760574579817,0.18029387,110930.0,110920.0,0.29571013]
[1760574580274,0.18029387,110930.0,110920.0,0.1154]
[1760574580511,0.566963,110930.0,110920.0,0.30445926]
[1760574580738,0.566963,110930.0,110920.0,0.29571013]
[1760574580951,0.18029387,110930.0,110920.0,0.29571013]
[1760574581162,0.566963,110930.0,110920.0,0.29471013]
[1760574581801,0.566963,110930.0,110920.0,0.29371013]
[1760574582010,0.57596063,110940.0,110930.0,0.18029387]
[1760574582224,0.18027762,110940.0,110930.0,0.29369387]
[1760574582432,0.18940962,110950.0,110930.0,0.38338399]
[1760574582653,0.18940962,110950.0,110940.0,0.18868658]
[1760574582863,0.00013519,110950.0,110940.0,0.18027762]
[1760574583080,0.00013519,110950.0,110940.0,0.65663687]
[1760574583497,0.00013519,110950.0,110940.0,0.26996774]
[1760574584290,0.18039656,110950.0,110940.0,0.08969012]
[1760574584507,0.18027762,110940.0,110930.0,0.18029387]
[1760574584707,0.18027762,110940.0,110930.0,0.20309012]
[1760574584913,0.18027762,110940.0,110930.0,0.26998399]
[1760574585220,0.18027762,110940.0,110930.0,0.38338399]
[1760574585647,0.00013519,110950.0,110930.0,0.26998399]
[1760574585837,0.01243143,110950.0,110940.0,0.18783346]
[1760574586086,0.00013519,110950.0,110940.0,0.18027762]
[1760574586290,0.00013519,110950.0,110940.0,0.18127762]
[1760574586874,0.00013519,110950.0,110940.0,0.18027762]
[1760574587044,0.00013519,110950.0,110940.0,0.26996774]
[1760574589337,0.00013519,110950.0,110940.0,0.38336774]
[1760574590769,0.00013519,110950.0,110940.0,0.26996774]
[1760574591270,0.00013519,110950.0,110940.0,0.38336774]
[1760574592285,0.00013519,110950.0,110940.0,0.65663687]
[1760574592495,0.00013519,110950.0,110940.0,0.76999687]
[1760574592852,0.00013519,110950.0,110940.0,0.38332774]
[1760574593883,0.00013519,110950.0,110940.0,0.76999687]
[1760574594912,0.00013519,110950.0,110940.0,0.82411687]
[1760574595491,0.00013519,110950.0,110940.0,0.32408774]
[1760574595713,0.18024515,110960.0,110950.0,0.18026137]
[1760574595924,0.18024515,110960.0,110950.0,0.26995149]
[1760574596140,0.18024513,110960.0,110950.0,0.26995149]
[1760574596362,0.56691426,110960.0,110950.0,0.08969012]
[1760574596584,0.56691426,110960.0,110940.0,0.34775762]
[1760574596585,0.56691426,110960.0,110940.0,0.18027762]
[1760574596822,0.5669305,110950.0,110940.0,0.26996774]
[1760574597048,0.5669305,110950.0,110940.0,0.38332774]
[1760574597262,0.5669305,110950.0,110940.0,0.38432774]
[1760574597482,0.18026137,110950.0,110940.0,0.29363762]